[Event "FIDE WAC U1700 2021"]
[Site "Rhodes"]
[Date "2021.10.24"]
[Round "8.5"]
[White "Hatipoglu, Metin"]
[Black "Michailov, Andrej"]
[Result "1-0"]
[ECO "C89"]
[WhiteElo "1609"]
[BlackElo "1656"]
[Annotator "NA"]
[PlyCount "60"]
[EventDate "2021.10.17"]
[EventType "swiss"]
[EventCountry "GRE"]
[SourceTitle "playchess.com"]
[Source "ChessBase"]
[SourceQuality "1"]
[TimeControl "5400+30"]

1. e4 {[%emt 0:00:03]} e5 {[%emt 0:00:01]} 2. Nf3 {[%emt 0:00:31]} Nc6 {[%emt 0:00:01]} 3. Bb5 {[%emt 0:01:17]} a6 {[%emt 0:00:02]} 4. Ba4 {[%emt 0:00:12]} Nf6 {[%emt 0:00:04]} 5. O-O {[%emt 0:00:09]} Be7 {[%emt 0:00:02]} 6. Re1 {[%emt 0:00:08]} b5 {[%emt 0:00:00]} 7. Bb3 {[%emt 0:00:11]} O-O {[%emt 0:00:03]} 8. c3 {[%emt 0:01:14]} d5 {[%emt 0:00:17]} 9. exd5 {[%emt 0:00:46]} Nxd5 {[%emt 0:00:03]} 10. Nxe5 {[%emt 0:00:13]} Nxe5 {[%emt 0:00:03]} 11. Rxe5 {[%emt 0:00:12]} c6 {[%emt 0:00:04]} 12. d4 {[%emt 0:00:32]} Bd6 {[%emt 0:00:03]} 13. Re1 {[%emt 0:00:11]} Qh4 {[%emt 0:01:39]} 14. g3 {[%emt 0:01:07]} Qh3 {[%emt 0:00:15]} 15. Qf3 {[%emt 0:02:23]} Bg4 {[%emt 0:00:29]} 16. Qg2 {[%emt 0:00:12]} Qh5 {[%emt 0:00:09]} 17. Be3 {[%emt 0:02:27]} Rae8 {[%emt 0:03:12]} 18. Nd2 {[%emt 0:03:14]} Re6 {[%emt 0:33:54]} 19. a4 {[%emt 0:08:14]} Rfe8 {[%emt 0:06:49]} 20. Bxd5 {[%emt 0:08:21]} cxd5 {[%emt 0:00:12]} 21. axb5 {[%emt 0:01:24]} axb5 {[%emt 0:06:13]} 22. Ra5 {[%emt 0:02:50]} Be2 {[%emt 0:09:36]} 23. Rea1 {[%emt 0:09:49]} Qf5 {[%emt 0:10:43]} 24. Ra8 {[%emt 0:03:54]} h5 {[%emt 0:00:29]} 25. h4 {[%emt 0:03:22]} Rxa8 {[%emt 0:02:46]} 26. Rxa8+ {[%emt 0:01:20]} Kh7 {[%emt 0:00:01]} 27. Kh2 {[%emt 0:04:00]} Rg6 {[%emt 0:10:39]} 28. Ra1 {[%emt 0:09:24]} Rg4 {[%emt 0:05:25]} 29. Kg1 {[%emt 0:05:42]} Rg6 {[%emt 0:04:02]} 30. Re1 {[%emt 0:01:49]} Bg4 {[%emt 0:00:34]} 1-0